fUST/lending_fUST_20250305
["ID","MTS","AMOUNT","RATE_DAILY","PERIOD"]
[355413409,1741117850719,-500.0,0.00045479,120]
[355413410,1741117850728,-1111.11,0.00045479,120]
[355413411,1741117850736,-500.0,0.00045479,120]
[355413412,1741117850745,-500.0,0.00045479,120]
[355413413,1741117850754,-500.0,0.00045479,120]
[355413414,1741117850764,-500.0,0.00045479,120]
[355413415,1741117850773,-500.0,0.00045479,120]
[355413416,1741117850782,-631.90323501,0.00045479,120]
[355413417,1741117850793,-500.0,0.00045479,120]
[355413418,1741117850803,-500.0,0.00045479,120]
[355413419,1741117850812,-500.0,0.00045479,120]
[355413420,1741117850822,-500.0,0.00045479,120]
[355413421,1741117850831,-500.0,0.00045479,120]
[355413422,1741117850841,-500.0,0.00045479,120]
[355413423,1741117850851,-500.0,0.00045479,120]
[355413424,1741117850860,-500.0,0.00045479,120]
[355413425,1741117850870,-500.0,0.00045479,120]
[355413426,1741117850879,-1990.23,0.00045479,120]
[355413427,1741117850888,-641.13225981,0.00045479,120]
[355413428,1741117850897,-606.49967527,0.00045479,120]
[355413429,1741117850907,-500.0,0.00045479,120]
[355413430,1741117850916,-500.0,0.00045479,120]
[355413431,1741117850925,-500.0,0.00045479,120]
[355413432,1741117850935,-500.0,0.00045479,120]
[355413433,1741117850945,-587.82797238,0.00045479,120]
[355413434,1741117850954,-500.0,0.00045479,120]
[355413435,1741117850964,-500.0,0.00045479,120]
[355413436,1741117850974,-500.0,0.00045479,120]
[355413437,1741117850983,-500.0,0.00045479,120]
[355413438,1741117850993,-500.0,0.00045479,120]
[355413439,1741117851003,-500.0,0.00045479,120]
[355413440,1741117851012,-1624.6,0.00045479,120]
[355413441,1741117851021,-500.0,0.00045479,120]
[355413442,1741117851126,-1516.48,0.00045479,30]
[355413443,1741117851136,-500.0,0.00045479,120]
[355413444,1741117851146,-500.0,0.00045479,120]
[355413445,1741117851156,-500.0,0.00045479,120]
[355413446,1741117851165,-500.0,0.00045479,120]
[355413447,1741117851175,-500.0,0.00045479,120]
[355413448,1741117851184,-500.0,0.00045479,120]
[355413449,1741117851194,-500.0,0.00045479,120]
[355413450,1741117851204,-500.0,0.00045479,120]
[355413451,1741117851213,-500.0,0.00045479,120]
[355413452,1741117851222,-1284.75,0.00045479,120]
[355413453,1741117851232,-4806.07,0.00045479,120]
[355413454,1741117851241,-500.0,0.00045479,120]
[355413455,1741117851250,-500.0,0.00045479,120]
[355413456,1741117851259,-500.0,0.00045479,120]
[355413457,1741117851269,-772.3,0.00045479,120]
[355413458,1741117851278,-500.0,0.00045479,120]
[355413459,1741117851287,-500.0,0.00045479,120]
[355413460,1741117851297,-500.0,0.00045479,120]
[355413461,1741117851306,-500.0,0.00045479,120]
[355413462,1741117851316,-500.0,0.00045479,120]
[355413463,1741117851326,-2019.07,0.00045479,120]
[355413464,1741117851335,-4264.68,0.00045479,6]
[355413465,1741117851346,-500.0,0.00045479,120]
[355413466,1741117851355,-2115.93,0.00045479,120]
[355413467,1741117851364,-500.0,0.00045479,120]
[355413468,1741117851374,-500.0,0.00045479,120]
[355413469,1741117851383,-500.0,0.00045479,120]
[355413470,1741117851392,-500.0,0.00045479,120]
[355413471,1741117851402,-500.0,0.00045479,120]
[355413472,1741117851411,-500.0,0.00045479,120]
[355413473,1741117851421,-500.0,0.00045479,120]
[355413474,1741117851430,-887.61,0.00045479,120]
[355413475,1741117851439,-500.0,0.00045479,120]
[355413476,1741117851449,-687.31,0.00045479,120]
[355413477,1741117851458,-500.0,0.00045479,120]
[355413478,1741117851467,-607.0,0.00045479,120]
[355413479,1741117851476,-1852.06,0.00045479,120]
[355413480,1741117851486,-500.0,0.00045479,120]
[355413481,1741117851495,-500.0,0.00045479,120]
[355413482,1741117851504,-500.0,0.00045479,120]
[355413483,1741117851513,-1301.05,0.00045479,120]
[355413484,1741117851522,-2190.61,0.00045479,120]
[355413485,1741117851532,-2933.38,0.00045479,120]
[355413486,1741117851541,-500.0,0.00045479,120]
[355413487,1741117851550,-1314.64,0.00045479,120]
[355413488,1741117851559,-7801.42,0.00045479,120]
[355413489,1741117851569,-500.0,0.00045479,120]
[355413490,1741117851578,-500.0,0.00045479,120]
[355413491,1741117851587,-500.0,0.00045479,120]
[355413492,1741117851596,-500.0,0.00045479,120]
[355413493,1741117851606,-500.0,0.00045479,120]
[355413494,1741117851615,-1486.22,0.00045479,120]
[355413495,1741117851626,-500.0,0.00045479,120]
[355413496,1741117851636,-500.0,0.00045479,120]
[355413497,1741117851646,-1079.33,0.00045479,120]
[355413498,1741117851655,-500.0,0.00045479,120]
[355413499,1741117851665,-500.0,0.00045479,120]
[355413500,1741117851674,-49328.95,0.00045479,7]
[355413501,1741117851684,-500.0,0.00045479,120]
[355413502,1741117851693,-500.0,0.00045479,120]
[355413503,1741117851703,-772.34,0.00045479,120]
[355413504,1741117851713,-500.0,0.00045481,30]
[355413505,1741117851723,-500.0,0.00045533,30]
[355413506,1741117851732,-700.0,0.00045547,30]
[355413507,1741117851741,-800.0,0.00045585,14]
[355413508,1741117851751,-500.0,0.00045588,30]
[355413509,1741117851760,-160.91,0.000456,30]
[355413510,1741117851771,-500.0,0.00045621,30]
[355413511,1741117851780,-500.0,0.0004569,30]
[355413512,1741117851790,-352.9,0.000457,30]
[355413513,1741117851799,-5096.3,0.000457,30]
[355413514,1741117851809,-346.53,0.000457,30]
[355413515,1741117851818,-500.0,0.00045712,30]
[355413516,1741117851828,-800.0,0.00045732,14]
[355413517,1741117851837,-700.0,0.00045772,30]
[355413518,1741117851847,-700.0,0.00045784,30]
[355413519,1741117851856,-700.0,0.0004579,30]
[355413520,1741117851865,-500.0,0.00045835,30]
[355413521,1741117851876,-500.0,0.00045894,30]
[355413522,1741117851886,-700.0,0.00045914,30]
[355413523,1741117851895,-500.0,0.00046,30]
[355413524,1741117851905,-350.0,0.00046021,10]
[355413525,1741117851914,-999.0,0.00046025,120]
[355413526,1741117851923,-500.0,0.00046026,120]
[355413527,1741117851933,-500.0,0.00046026,120]
[355413528,1741117851942,-150.0,0.00046027,2]
[355413529,1741117851951,-500.0,0.00046027,120]
[355413530,1741117851960,-500.0,0.00046027,120]
[355413531,1741117851970,-500.0,0.00046027,120]
[355413532,1741117851979,-500.0,0.00046027,120]
[355413533,1741117851988,-252.60744673,0.00046027,120]
[355413534,1741117851998,-500.0,0.00046027,120]
[355413535,1741117852007,-500.0,0.00046027,120]
[355413536,1741117852016,-1111.11,0.00046027,120]
[355413537,1741117852026,-500.0,0.00046027,120]
[355413538,1741117852035,-500.0,0.00046027,120]
[355413539,1741117852044,-500.0,0.00046027,120]
[355413540,1741117852053,-227.07571358,0.00046027,120]
[355413541,1741117852062,-500.0,0.00046027,120]
[355413542,1741117852072,-267.07446645,0.00046027,120]
[355413543,1741117852081,-500.0,0.00046027,120]
[355413544,1741117852091,-500.0,0.00046027,120]
[355413545,1741117852100,-500.0,0.00046027,120]
[355413546,1741117852113,-500.0,0.00046027,120]
[355413547,1741117852122,-500.0,0.00046027,120]
[355413548,1741117852133,-500.0,0.00046027,120]
[355413549,1741117852143,-450.67,0.00046027,120]
[355413550,1741117852154,-500.0,0.00046027,120]
[355413551,1741117852164,-1990.23,0.00046027,120]
[355413552,1741117852174,-500.0,0.00046027,120]
[355413553,1741117852187,-500.0,0.00046027,120]
[355413554,1741117852198,-500.0,0.00046027,120]
[355413555,1741117852214,-500.0,0.00046027,120]
[355413556,1741117852224,-500.0,0.00046027,120]
[355413557,1741117852233,-500.0,0.00046027,120]
[355413558,1741117852243,-500.0,0.00046027,120]
[355413559,1741117852253,-500.0,0.00046027,120]
[355413560,1741117852262,-500.0,0.00046027,120]
[355413561,1741117852272,-1624.6,0.00046027,120]
[355413562,1741117852281,-500.0,0.00046027,120]
[355413563,1741117852291,-1516.48,0.00046027,30]
[355413564,1741117852301,-330.73462081,0.00046027,120]
[355413565,1741117852310,-500.0,0.00046027,120]
[355413566,1741117852319,-500.0,0.00046027,120]
[355413567,1741117852329,-500.0,0.00046027,120]
[355413568,1741117852338,-500.0,0.00046027,120]
[355413569,1741117852348,-345.23463025,0.00046027,120]
[355413570,1741117852358,-500.0,0.00046027,120]
[355413571,1741117852367,-500.0,0.00046027,120]
[355413572,1741117852378,-500.0,0.00046027,120]
[355413573,1741117852388,-1284.75,0.00046027,120]
[355413574,1741117852397,-4806.07,0.00046027,120]
[355413575,1741117852407,-500.0,0.00046027,120]
[355413576,1741117852416,-589.57652593,0.00046027,120]
[355413577,1741117852426,-500.0,0.00046027,120]
[355413578,1741117852435,-772.3,0.00046027,120]
[355413579,1741117852445,-500.0,0.00046027,120]
[355413580,1741117852454,-500.0,0.00046027,120]
[355413581,1741117852463,-500.0,0.00046027,120]
[355413582,1741117852472,-337.42919329,0.00046027,120]
[355413583,1741117852482,-187.61,0.00046027,120]
[355413584,1741117852492,-2019.07,0.00046027,120]
[355413585,1741117852501,-4264.68,0.00046027,6]
[355413586,1741117852511,-500.0,0.00046027,120]
[355413587,1741117852520,-2115.93,0.00046027,120]
[355413588,1741117852529,-500.0,0.00046027,120]
[355413589,1741117852538,-500.0,0.00046027,120]
[355413590,1741117852547,-500.0,0.00046027,120]
[355413591,1741117852557,-500.0,0.00046027,120]
[355413592,1741117852566,-500.0,0.00046027,120]
[355413593,1741117852576,-500.0,0.00046027,120]
[355413594,1741117852585,-500.0,0.00046027,120]
[355413595,1741117852594,-887.61,0.00046027,120]
[355413596,1741117852603,-500.0,0.00046027,120]
[355413597,1741117852613,-687.31,0.00046027,120]
[355413598,1741117852622,-500.0,0.00046027,120]
[355413599,1741117852633,-607.0,0.00046027,120]
[355413600,1741117852642,-1852.06,0.00046027,120]
[355413601,1741117852652,-500.0,0.00046027,120]
[355413602,1741117852661,-500.0,0.00046027,120]
[355413603,1741117852670,-500.0,0.00046027,120]
[355413604,1741117852679,-1301.05,0.00046027,120]
[355413605,1741117852689,-2190.61,0.00046027,120]
[355413606,1741117852698,-500.0,0.00046027,120]
[355413607,1741117852708,-2933.38,0.00046027,120]
[355413608,1741117852717,-1314.64,0.00046027,120]
[355413609,1741117852726,-7801.42,0.00046027,120]
[355413610,1741117852736,-500.0,0.00046027,120]
[355413611,1741117852745,-500.0,0.00046027,120]
[355413612,1741117852755,-500.0,0.00046027,120]
[355413613,1741117852764,-500.0,0.00046027,120]
[355413614,1741117852773,-500.0,0.00046027,120]
[355413615,1741117852783,-1486.22,0.00046027,120]
[355413616,1741117852792,-500.0,0.00046027,120]
[355413617,1741117852802,-500.0,0.00046027,120]
[355413618,1741117852811,-1079.33,0.00046027,120]
[355413619,1741117852821,-500.0,0.00046027,120]
[355413620,1741117852831,-500.0,0.00046027,120]
[355413621,1741117852840,-49328.95,0.00046027,7]
[355413622,1741117852850,-500.0,0.00046027,120]
[355413623,1741117852860,-500.0,0.00046027,120]
[355413624,1741117852869,-700.0,0.00046073,30]
[355413625,1741117852881,-500.0,0.00046195,30]
[355413626,1741117852890,-1097.0,0.00046211,5]
[355413627,1741117852899,-700.0,0.00046243,30]
[355413628,1741117852909,-500.0,0.0004625,30]
[355413629,1741117852919,-500.0,0.0004628,30]
[355413630,1741117852929,-700.0,0.00046301,30]
[355413631,1741117852938,-800.0,0.0004637,14]
[355413632,1741117852948,-500.0,0.00046397,30]
[355413633,1741117852957,-700.0,0.00046437,30]
[355413634,1741117852967,-500.0,0.00046532,2]
[355413635,1741117852977,-925.72,0.00046573,120]
[355413636,1741117852987,-500.0,0.00046574,120]
[355413637,1741117852997,-500.0,0.00046574,120]
[355413638,1741117853007,-150.0,0.00046575,2]
[355413639,1741117853017,-500.0,0.00046575,120]
[355413640,1741117853027,-500.0,0.00046575,120]
[355413641,1741117853037,-500.0,0.00046575,120]
[355413642,1741117853047,-567.21173789,0.00046575,120]
[355413643,1741117853057,-287.07,0.00046575,120]
[355413644,1741117853067,-500.0,0.00046575,120]
[355413645,1741117853077,-1111.11,0.00046575,120]
[355413646,1741117853086,-619.58990939,0.00046575,120]
[355413647,1741117853096,-500.0,0.00046575,120]
[355413648,1741117853108,-500.0,0.00046575,120]
[355413649,1741117853119,-500.0,0.00046575,120]
[355413650,1741117853128,-500.0,0.00046575,120]
[355413651,1741117853138,-500.0,0.00046575,120]
[355413652,1741117853147,-500.0,0.00046575,120]
[355413653,1741117853158,-500.0,0.00046575,120]
[355413654,1741117853167,-500.0,0.00046575,120]
[355413655,1741117853176,-500.0,0.00046575,120]
[355413656,1741117853186,-500.0,0.00046575,120]
[355413657,1741117853197,-1990.23,0.00046575,120]
[355413658,1741117853208,-500.0,0.00046575,120]
[355413659,1741117853218,-184.08652413,0.00046575,120]
[355413660,1741117853227,-500.0,0.00046575,120]
[355413661,1741117853239,-500.0,0.00046575,120]
[355413662,1741117853248,-500.0,0.00046575,120]
[355413663,1741117853258,-391.12460047,0.00046575,120]
[355413664,1741117853268,-500.0,0.00046575,120]
[355413665,1741117853278,-500.0,0.00046575,120]
[355413666,1741117853287,-500.0,0.00046575,120]
[355413667,1741117853297,-1624.6,0.00046575,120]
[355413668,1741117853306,-500.0,0.00046575,120]
[355413669,1741117853315,-1516.48,0.00046575,30]
[355413670,1741117853324,-500.0,0.00046575,120]
[355413671,1741117853334,-500.0,0.00046575,120]
[355413672,1741117853344,-500.0,0.00046575,120]
[355413673,1741117853354,-500.0,0.00046575,120]
[355413674,1741117853363,-500.0,0.00046575,120]
[355413675,1741117853372,-500.0,0.00046575,120]
[355413676,1741117853388,-500.0,0.00046575,120]
[355413677,1741117853398,-1284.75,0.00046575,120]
[355413678,1741117853408,-4806.07,0.00046575,120]
[355413679,1741117853418,-500.0,0.00046575,120]
[355413680,1741117853428,-279.94,0.00046575,120]
[355413681,1741117853438,-772.3,0.00046575,120]
[355413682,1741117853448,-321.5,0.00046575,120]
[355413683,1741117853459,-500.0,0.00046575,120]
[355413684,1741117853470,-500.0,0.00046575,120]
[355413685,1741117853481,-2019.07,0.00046575,120]
[355413686,1741117853491,-4264.68,0.00046575,6]
[355413687,1741117853501,-500.0,0.00046575,120]
[355413688,1741117853512,-2115.93,0.00046575,120]
[355413689,1741117853522,-500.0,0.00046575,120]
[355413690,1741117853532,-500.0,0.00046575,120]
[355413691,1741117853542,-500.0,0.00046575,120]
[355413692,1741117853644,-500.0,0.00046575,120]
[355413693,1741117853655,-500.0,0.00046575,120]
[355413694,1741117853665,-500.0,0.00046575,120]
[355413695,1741117853675,-500.0,0.00046575,120]
[355413696,1741117853685,-887.61,0.00046575,120]
[355413697,1741117853695,-500.0,0.00046575,120]
[355413698,1741117853704,-687.31,0.00046575,120]
[355413699,1741117853714,-500.0,0.00046575,120]
[355413700,1741117853724,-607.0,0.00046575,120]
[355413701,1741117853734,-1852.06,0.00046575,120]
[355413702,1741117853745,-500.0,0.00046575,120]
[355413703,1741117853754,-500.0,0.00046575,120]
[355413704,1741117853764,-500.0,0.00046575,120]
[355413705,1741117853774,-1301.05,0.00046575,120]
[355413706,1741117853783,-2190.61,0.00046575,120]
[355413707,1741117853793,-500.0,0.00046575,120]
[355413708,1741117853803,-2933.38,0.00046575,120]
[355413709,1741117853813,-1314.64,0.00046575,120]
[355413710,1741117853823,-7801.42,0.00046575,120]
[355413711,1741117853832,-500.0,0.00046575,120]
[355413712,1741117853842,-500.0,0.00046575,120]
[355413713,1741117853852,-362.38096071,0.00046575,120]
[355413714,1741117853862,-500.0,0.00046575,120]
[355413715,1741117853872,-477.74190616,0.00046575,120]
[355413716,1741117853884,-1486.22,0.00046575,120]
[355413717,1741117853893,-500.0,0.00046575,120]
[355413718,1741117853903,-500.0,0.00046575,120]
[355413719,1741117853912,-1079.33,0.00046575,120]
[355413720,1741117853922,-500.0,0.00046575,120]
[355413721,1741117853931,-500.0,0.00046575,120]
[355413722,1741117853940,-49328.95,0.00046575,7]
[355413723,1741117853949,-500.0,0.00046575,120]
[355413724,1741117853959,-500.0,0.00046575,120]
[355413725,1741117853969,-700.0,0.00046582,30]
[355413726,1741117853978,-500.0,0.00046596,30]
[355413727,1741117853987,-700.0,0.00046603,30]
[355413728,1741117853997,-500.0,0.00046615,30]
[355413729,1741117854007,-700.0,0.00046628,30]
[355413730,1741117854016,-500.0,0.00046695,30]
[355413731,1741117854026,-500.0,0.00046757,30]
[355413732,1741117854036,-500.0,0.0004678,30]
[355413733,1741117854046,-500.0,0.00046866,30]
[355413734,1741117854057,-871.97,0.000469,2]
[355413735,1741117854066,-1000.0,0.000469,52]
[355413736,1741117854076,-700.0,0.00046928,30]
[355413737,1741117854086,-500.0,0.00046958,30]
[355413738,1741117854097,-700.0,0.00046972,30]
[355413739,1741117854114,-199.999999,0.00047,120]
[355413740,1741117854124,-6143.0,0.00047,120]
[355413741,1741117854136,-3000.0,0.00047,120]
[355413742,1741117854146,-500.0,0.00047013,30]
[355413743,1741117854156,-169.32,0.00047023,120]
[355413744,1741117854165,-500.0,0.00047063,30]
[355413745,1741117854178,-800.0,0.00047079,14]
[355413746,1741117854188,-352.9,0.000471,30]
[355413747,1741117854197,-5096.3,0.000471,30]
[355413748,1741117854208,-346.53,0.000471,30]
[355413749,1741117854218,-151.68166078,0.00047105,10]
[355413750,1741117854228,-700.0,0.0004712,30]
[355413751,1741117854237,-500.0,0.00047122,120]
[355413752,1741117854247,-500.0,0.00047122,120]
[355413753,1741117854256,-200.0,0.00047123,2]
[355413754,1741117854265,-382.60013845,0.00047123,120]
[355413755,1741117854274,-166.22,0.00047123,120]
[355413756,1741117854283,-500.0,0.00047123,120]
[355413757,1741117854293,-500.0,0.00047123,120]
[355413758,1741117854302,-1111.11,0.00047123,120]
[355413759,1741117854311,-500.0,0.00047123,120]
[355413760,1741117854320,-389.94,0.00047123,120]
[355413761,1741117854330,-500.0,0.00047123,120]
[355413762,1741117854339,-250.80881998,0.00047123,120]
[355413763,1741117854348,-187.54789068,0.00047123,120]
[355413764,1741117854358,-500.0,0.00047123,120]
[355413765,1741117854367,-500.0,0.00047123,120]
[355413766,1741117854376,-500.0,0.00047123,120]
[355413767,1741117854387,-500.0,0.00047123,120]
[355413768,1741117854396,-500.0,0.00047123,120]
[355413769,1741117854406,-1990.23,0.00047123,120]
[355413770,1741117854415,-500.0,0.00047123,120]
[355413771,1741117854424,-381.24687421,0.00047123,120]
[355413772,1741117854434,-538.9684994,0.00047123,120]
[355413773,1741117854444,-500.0,0.00047123,120]
[355413774,1741117854453,-500.0,0.00047123,120]
[355413775,1741117854463,-500.0,0.00047123,120]
[355413776,1741117854472,-500.0,0.00047123,120]
[355413777,1741117854481,-1624.6,0.00047123,120]
[355413778,1741117854491,-500.0,0.00047123,120]
[355413779,1741117854500,-1516.48,0.00047123,30]
[355413780,1741117854510,-500.0,0.00047123,120]
[355413781,1741117854519,-500.0,0.00047123,120]
[355413782,1741117854529,-500.0,0.00047123,120]
[355413783,1741117854538,-500.0,0.00047123,120]
[355413784,1741117854547,-500.0,0.00047123,120]
[355413785,1741117854557,-500.0,0.00047123,120]
[355413786,1741117854566,-500.0,0.00047123,120]
[355413787,1741117854577,-1284.75,0.00047123,120]
[355413788,1741117854586,-4806.07,0.00047123,120]
[355413789,1741117854596,-500.0,0.00047123,120]
[355413790,1741117854605,-772.3,0.00047123,120]
[355413791,1741117854615,-500.0,0.00047123,120]
[355413792,1741117854624,-500.0,0.00047123,120]
[355413793,1741117854637,-2019.07,0.00047123,120]
[355413794,1741117854646,-4264.68,0.00047123,6]
[355413795,1741117854656,-500.0,0.00047123,120]
[355413796,1741117854665,-2115.93,0.00047123,120]
[355413797,1741117854675,-500.0,0.00047123,120]
[355413798,1741117854686,-500.0,0.00047123,120]
[355413799,1741117854695,-500.0,0.00047123,120]
[355413800,1741117854705,-500.0,0.00047123,120]
[355413801,1741117854715,-500.0,0.00047123,120]
[355413802,1741117854724,-500.0,0.00047123,120]
[355413803,1741117854734,-500.0,0.00047123,120]
[355413804,1741117854744,-887.61,0.00047123,120]
[355413805,1741117854753,-500.0,0.00047123,120]
[355413806,1741117854763,-687.31,0.00047123,120]
[355413807,1741117854772,-500.0,0.00047123,120]
[355413808,1741117854782,-607.0,0.00047123,120]
[355413809,1741117854791,-1852.06,0.00047123,120]
[355413810,1741117854801,-500.0,0.00047123,120]
[355413811,1741117854811,-500.0,0.00047123,120]
[355413812,1741117854820,-300.11816529,0.00047123,120]
[355413813,1741117854830,-1301.05,0.00047123,120]
[355413814,1741117854840,-2190.61,0.00047123,120]
[355413815,1741117854850,-500.0,0.00047123,120]
[355413816,1741117854859,-2933.38,0.00047123,120]
[355413817,1741117854869,-1314.64,0.00047123,120]
[355413818,1741117854879,-7801.42,0.00047123,120]
[355413819,1741117854889,-500.0,0.00047123,120]
[355413820,1741117854898,-500.0,0.00047123,120]
[355413821,1741117854907,-412.58136375,0.00047123,120]
[355413822,1741117854917,-1486.22,0.00047123,120]
[355413823,1741117854927,-500.0,0.00047123,120]
[355413824,1741117854937,-500.0,0.00047123,120]
[355413825,1741117854947,-1079.33,0.00047123,120]
[355413826,1741117854957,-500.0,0.00047123,120]
[355413827,1741117854966,-500.0,0.00047123,120]
[355413828,1741117854976,-49328.95,0.00047123,7]
[355413829,1741117854986,-500.0,0.00047123,120]
[355413830,1741117854995,-500.0,0.00047123,120]
[355413831,1741117855005,-9999.0,0.0004713,120]
[355413832,1741117855015,-500.0,0.0004714,30]
[355413833,1741117855024,-500.0,0.00047193,30]
[355413834,1741117855033,-700.0,0.00047282,30]
[355413835,1741117855043,-500.0,0.00047287,30]
[355413836,1741117855053,-151.0,0.00047299,30]
[355413837,1741117855062,-800.0,0.00047299,30]
[355413838,1741117855072,-864.0,0.00047299,30]
[355413839,1741117855081,-933.12,0.00047299,30]
[355413840,1741117855091,-1007.7696,0.00047299,30]
[355413841,1741117855100,-1088.391168,0.00047299,30]
[355413842,1741117855111,-1175.46246144,0.00047299,30]
[355413843,1741117855125,-1434.72470923,0.00047299,30]
[355413844,1741117855136,-150.0,0.00047299,2]
[355413845,1741117855146,-150.5,0.00047299,2]
[355413846,1741117855155,-150.0,0.00047299,10]
[355413847,1741117855164,-290.14119297,0.00047299,30]
[355413848,1741117855173,-500.0,0.00047379,30]
[355413849,1741117855183,-500.0,0.00047531,30]
[355413850,1741117855193,-150.0,0.00047549,2]
[355413851,1741117855203,-1954.0,0.00047549,2]
[355413852,1741117855212,-539.0,0.00047549,2]
[355413853,1741117855221,-2276.0,0.00047549,2]
[355413854,1741117855231,-397.0,0.00047549,2]
[355413855,1741117855240,-281.97,0.000476,30]
[355413856,1741117855250,-700.0,0.00047612,30]
[355413857,1741117855260,-500.0,0.00047653,30]
[355413858,1741117855269,-500.0,0.0004767,120]
[355413859,1741117855279,-500.0,0.00047671,120]
[355413860,1741117855288,-500.0,0.00047671,120]
[355413861,1741117855298,-1111.11,0.00047671,120]
[355413862,1741117855309,-500.0,0.00047671,120]
[355413863,1741117855318,-303.20973395,0.00047671,120]
[355413864,1741117855328,-500.0,0.00047671,120]
[355413865,1741117855338,-544.86,0.00047671,120]
[355413866,1741117855347,-500.0,0.00047671,120]
[355413867,1741117855356,-500.0,0.00047671,120]
[355413868,1741117855366,-500.0,0.00047671,120]
[355413869,1741117855375,-1990.23,0.00047671,120]
[355413870,1741117855386,-500.0,0.00047671,120]
[355413871,1741117855396,-500.0,0.00047671,120]
[355413872,1741117855405,-500.0,0.00047671,120]
[355413873,1741117855415,-500.0,0.00047671,120]
[355413874,1741117855424,-500.0,0.00047671,120]
[355413875,1741117855434,-1624.6,0.00047671,120]
[355413876,1741117855443,-500.0,0.00047671,120]
[355413877,1741117855452,-1516.48,0.00047671,30]
[355413878,1741117855461,-500.0,0.00047671,120]
[355413879,1741117855471,-500.0,0.00047671,120]
[355413880,1741117855480,-608.09411815,0.00047671,120]
[355413881,1741117855489,-500.0,0.00047671,120]
[355413882,1741117855499,-500.0,0.00047671,120]
[355413883,1741117855509,-500.0,0.00047671,120]
[355413884,1741117855519,-1284.75,0.00047671,120]
[355413885,1741117855529,-4806.07,0.00047671,120]
[355413886,1741117855538,-500.0,0.00047671,120]
[355413887,1741117855547,-772.3,0.00047671,120]
[355413888,1741117855557,-500.0,0.00047671,120]
[355413889,1741117855566,-500.0,0.00047671,120]
[355413890,1741117855576,-2019.07,0.00047671,120]
[355413891,1741117855585,-4264.68,0.00047671,6]
[355413892,1741117855595,-500.0,0.00047671,120]
[355413893,1741117855604,-2115.93,0.00047671,120]
[355413894,1741117855614,-500.0,0.00047671,120]
[355413895,1741117855623,-500.0,0.00047671,120]
[355413896,1741117855633,-500.0,0.00047671,120]
[355413897,1741117855643,-500.0,0.00047671,120]
[355413898,1741117855652,-500.0,0.00047671,120]
[355413899,1741117855661,-500.0,0.00047671,120]
[355413900,1741117855671,-314.68278945,0.00047671,120]
[355413901,1741117855681,-887.61,0.00047671,120]
[355413902,1741117855691,-308.33951722,0.00047671,120]
[355413903,1741117855699,-687.31,0.00047671,120]
[355413904,1741117855709,-500.0,0.00047671,120]
[355413905,1741117855718,-607.0,0.00047671,120]
[355413906,1741117855727,-1852.06,0.00047671,120]
[355413907,1741117855736,-500.0,0.00047671,120]
[355413908,1741117855745,-500.0,0.00047671,120]